bitfinex/quotes_SOLUSD_20250216
["timestamp","ask_amount","ask_price","bid_price","bid_amount"]
[1739674497556,38.58184853,193.42,193.41,0.063]
[1739674497895,25.1698,193.43,193.41,0.063]
[1739674498060,20.0,193.43,193.41,10.30805834]
[1739674498260,87.2692,193.46,193.41,10.30805834]
[1739674498581,87.2692,193.46,193.42,10.24505834]
[1739674499175,87.2692,193.46,193.41,10.30805834]
[1739674500759,87.2692,193.46,193.41,0.063]
[1739674501463,97.51425834,193.46,193.41,0.063]
[1739674502977,20.0,193.42,193.41,0.063]
[1739674503477,45.21860687,193.42,193.41,0.063]
[1739674504382,50.38860687,193.42,193.41,0.063]
[1739674504875,10.24505834,193.39,193.32,10.24505834]
[1739674505082,10.24505834,193.39,193.33,10.24505834]
[1739674505381,10.24505834,193.41,193.35,10.24505834]
[1739674505784,13.41184853,193.4,193.34,10.24505834]
[1739674505973,23.65690687,193.4,193.34,10.24505834]
[1739674506180,13.41184853,193.4,193.34,10.24505834]
[1739674507691,5.1708,193.39,193.34,10.24505834]
[1739674508574,5.1706,193.41,193.36,10.24505834]
[1739674509166,23.65690687,193.4,193.34,10.24505834]
[1739674509378,23.65690687,193.4,193.33,10.24505834]
[1739674509573,25.1714,193.37,193.33,10.24505834]
[1739674512891,25.1714,193.37,193.33,10.30805834]
[1739674513789,25.1714,193.37,193.33,10.24505834]
[1739674513976,25.1714,193.37,193.34,10.24505834]
[1739674515192,5.1714,193.37,193.34,10.24505834]
[1739674516198,20.0,193.37,193.34,10.24505834]
[1739674517389,20.0,193.37,193.35,10.24505834]
[1739674517693,5.1708,193.39,193.36,10.24505834]
[1739674518274,5.1706,193.4,193.36,10.24505834]
[1739674518478,87.2704,193.41,193.38,10.24505834]
[1739674518680,5.1704,193.41,193.38,10.24505834]
[1739674519395,5.1704,193.41,193.37,10.24505834]
[1739674520100,5.17,193.42,193.37,10.24505834]
[1739674522295,5.17,193.42,193.38,10.24505834]
[1739674522694,5.17,193.42,193.37,10.24505834]
[1739674523401,5.17,193.42,193.36,10.24505834]
[1739674523994,15.41505834,193.42,193.36,10.24505834]
[1739674524192,10.24505834,193.41,193.35,10.24505834]
[1739674525203,5.1706,193.4,193.35,10.24505834]
[1739674525701,5.1706,193.4,193.33,5.1724]
[1739674525702,5.1706,193.4,193.36,10.24505834]
[1739674526379,5.1703,193.41,193.36,10.24505834]
[1739674527902,5.1703,193.41,193.37,10.24505834]
[1739674528108,5.1703,193.41,193.38,10.24505834]
[1739674528298,5.1703,193.41,193.39,10.24505834]
[1739674529116,5.2001,193.42,193.39,10.24505834]
[1739674529406,0.03,193.42,193.4,10.24505834]
[1739674531797,0.03,193.42,193.39,10.24505834]
[1739674532811,0.03,193.42,193.38,10.24505834]
[1739674535117,5.2,193.42,193.37,10.24505834]
[1739674535316,15.44505834,193.42,193.36,10.24505834]
[1739674536216,5.2,193.42,193.37,10.24505834]
[1739674536719,5.2,193.42,193.36,10.24505834]
[1739674537102,28.37025834,193.42,193.36,10.24505834]
[1739674537304,10.24505834,193.41,193.35,10.24505834]
[1739674539224,5.1706,193.4,193.38,0.063]
[1739674540831,0.03,193.42,193.38,0.063]
[1739674542105,13.41184853,193.38,193.3,10.24505834]
[1739674542302,23.65690687,193.38,193.3,10.24505834]
[1739674542506,23.62905488,193.38,193.31,10.24505834]
[1739674543225,10.24505834,193.38,193.31,10.24505834]
[1739674543410,5.1714,193.37,193.31,10.24505834]
[1739674543823,5.1714,193.37,193.32,10.24505834]
[1739674545528,5.1711,193.38,193.32,10.24505834]
[1739674548631,5.1711,193.38,193.33,10.24505834]
[1739674551528,5.1711,193.38,193.32,10.24505834]
[1739674552347,5.1711,193.38,193.32,10.30805834]
[1739674553832,15.41615834,193.38,193.32,10.30805834]
[1739674554648,5.1711,193.38,193.32,10.30805834]
[1739674555048,5.1711,193.38,193.33,10.24505834]
[1739674559455,5.1711,193.38,193.35,10.24505834]
[1739674562548,87.2704,193.41,193.37,10.24505834]
[1739674562756,5.1704,193.41,193.37,10.24505834]
[1739674563655,0.03,193.42,193.39,10.24505834]
[1739674563856,0.03,193.42,193.4,10.24505834]
[1739674565149,20.0,193.4,193.36,10.24505834]
[1739674565329,20.0,193.39,193.36,10.24505834]
[1739674565531,20.0,193.39,193.35,10.24505834]
[1739674567445,25.1711,193.39,193.35,10.24505834]
[1739674568540,25.1711,193.39,193.36,10.24505834]
[1739674570760,20.0,193.4,193.36,10.24505834]
[1739674571069,20.0,193.4,193.37,10.24505834]
[1739674573145,5.2003,193.42,193.39,10.24505834]
[1739674573556,20.0,193.39,193.38,10.24505834]
[1739674574162,5.2003,193.42,193.38,10.24505834]
[1739674574462,0.03,193.42,193.41,10.24505834]
[1739674575656,20.03,193.42,193.41,10.24505834]
[1739674576862,0.03,193.42,193.41,10.24505834]
[1739674578153,25.2001,193.42,193.39,10.24505834]
[1739674578569,20.03,193.42,193.39,10.24505834]
[1739674579970,20.03,193.42,193.41,10.24505834]
[1739674579971,0.03,193.42,193.41,10.24505834]
[1739674583473,0.03,193.42,193.41,15.41535834]
[1739674596885,0.03,193.42,193.41,10.24505834]
[1739674597077,0.03,193.42,193.38,0.063]
[1739674597078,0.03,193.42,193.4,10.24505834]
[1739674597669,0.03,193.42,193.39,10.24505834]
[1739674599603,0.03,193.42,193.38,0.063]
[1739674599803,20.0,193.4,193.38,0.063]
[1739674600006,20.0,193.39,193.38,0.063]
[1739674600575,10.27505834,193.42,193.38,0.063]
[1739674601010,20.0,193.39,193.38,0.063]
[1739674603678,20.0,193.4,193.38,0.063]
[1739674603999,20.0,193.39,193.38,0.063]
[1739674605479,20.0,193.4,193.38,0.063]
[1739674605694,25.1707,193.4,193.38,0.063]
[1739674608736,0.03,193.42,193.39,10.24505834]
[1739674608737,5.2001,193.42,193.39,10.24505834]
[1739674609038,0.03,193.42,193.4,10.24505834]
[1739674610632,0.03,193.42,193.41,10.24505834]
[1739674626123,0.03,193.46,193.41,15.41535834]
[1739674626336,0.03,193.46,193.45,10.24505834]
[1739674628749,0.03,193.46,193.45,15.41425834]
[1739674630434,0.03,193.46,193.45,10.24505834]
[1739674633346,0.03,193.46,193.45,15.41425834]
[1739674633534,0.03,193.47,193.45,15.41425834]
[1739674633730,0.03,193.47,193.46,10.24505834]
[1739674635329,0.03,193.47,193.46,15.41405834]
[1739674635547,0.03,193.47,193.46,10.24505834]
[1739674636556,0.03,193.58,193.46,72.58136048]
[1739674636850,5.1958,193.58,193.56,10.24505834]
[1739674637635,5.1958,193.58,193.54,10.24505834]
[1739674640050,5.1958,193.58,193.55,10.24505834]
[1739674641443,5.1958,193.58,193.54,10.24505834]
[1739674642851,20.0,193.54,193.5,10.24505834]
[1739674643051,20.0,193.54,193.49,10.24505834]
[1739674643552,5.1671,193.53,193.49,10.24505834]
[1739674643757,5.1671,193.53,193.46,0.063]
[1739674643758,5.1671,193.53,193.5,10.24505834]
[1739674644463,5.1671,193.53,193.51,10.24505834]
[1739674645061,5.1669,193.54,193.52,10.24505834]
[1739674646872,5.1669,193.54,193.51,10.24505834]
[1739674647851,5.1669,193.54,193.52,10.24505834]
[1739674648047,20.0,193.55,193.52,10.24505834]
[1739674650970,25.1666,193.55,193.52,10.24505834]
[1739674652608,23.18955834,193.58,193.53,10.24505834]
[1739674652609,5.166,193.57,193.53,10.24505834]
[1739674652998,20.0,193.55,193.54,10.24505834]
[1739674654975,20.0,193.56,193.54,10.24505834]
[1739674655347,5.166,193.57,193.53,10.24505834]
[1739674655569,5.166,193.57,193.54,10.24505834]
[1739674656370,5.1958,193.58,193.54,10.24505834]
[1739674657648,0.03,193.58,193.57,10.24505834]
[1739674660750,0.03,193.58,193.56,10.24505834]
[1739674661156,0.03,193.58,193.57,10.24505834]
[1739674661872,0.03,193.58,193.55,10.24505834]
[1739674664971,0.03,193.58,193.56,10.24505834]
[1739674665566,1.6109,193.61,193.56,10.24505834]
[1739674666980,5.1652,193.6,193.56,10.24505834]
[1739674671087,5.1652,193.6,193.55,10.24505834]
[1739674675494,10.24505834,193.57,193.51,10.24505834]
[1739674675694,5.1663,193.56,193.51,10.24505834]
[1739674675863,5.1663,193.56,193.5,10.24505834]
[1739674676666,28.32715834,193.56,193.5,10.24505834]
[1739674676984,10.24505834,193.55,193.49,10.24505834]
[1739674677978,5.1668,193.54,193.49,10.24505834]
[1739674681090,5.1668,193.54,193.5,10.24505834]
[1739674681485,5.1668,193.54,193.5,7.74505834]
[1739674682175,5.1666,193.55,193.51,10.24505834]
[1739674682377,5.1663,193.57,193.52,10.24505834]
[1739674682576,96.68275364,193.6,193.54,10.24505834]
[1739674682577,5.1655,193.59,193.54,10.24505834]
[1739674682975,5.1655,193.59,193.55,10.24505834]
[1739674683377,5.1655,193.59,193.54,10.24505834]
[1739674684907,15.41055834,193.59,193.53,10.24505834]
[1739674686770,10.24505834,193.58,193.52,10.24505834]
[1739674687702,5.166,193.57,193.52,10.24505834]
[1739674689097,5.166,193.57,193.53,10.24505834]
[1739674690404,5.1658,193.58,193.53,10.24505834]
[1739674690975,5.1658,193.58,193.5,0.063]
[1739674690976,0.03,193.59,193.55,10.24505834]
[1739674691182,0.03,193.59,193.57,10.24505834]
[1739674691890,0.03,193.59,193.58,10.24505834]
[1739674694783,0.03,193.59,193.58,15.41085834]
[1739674696381,0.03,193.59,193.58,16.18540309]
[1739674698501,0.03,193.59,193.58,11.01960309]
[1739674698702,0.03,193.59,193.58,10.24505834]
[1739674701204,0.03,193.59,193.58,15.41085834]
[1739674703594,0.03,193.59,193.58,10.24505834]
[1739674704992,0.03,193.59,193.58,15.41085834]
[1739674711519,0.03,193.59,193.58,57.16563833]
[1739674712595,0.03,193.59,193.58,16.18540497]
[1739674718116,0.03,193.59,193.58,17.18540497]
[1739674718625,0.03,193.59,193.58,11.01960497]
[1739674718922,0.03,193.59,193.58,15.41085834]
[1739674724731,0.03,193.59,193.58,10.24505834]
[1739674725404,0.03,193.59,193.58,15.41085834]
[1739674736639,0.03,193.59,193.58,10.24505834]
[1739674743633,0.03,193.59,193.58,15.41085834]
[1739674753048,0.03,193.59,193.58,10.24505834]
[1739674765550,0.03,193.59,193.58,15.41085834]
[1739674767050,0.03,193.59,193.58,10.24505834]
[1739674767660,0.03,193.59,193.58,15.41085834]
[1739674791574,0.03,193.59,193.58,10.24505834]
[1739674795081,0.03,193.59,193.58,15.41085834]
[1739674811489,0.03,193.59,193.58,10.24505834]
[1739674812122,0.03,193.59,193.57,10.24505834]
[1739674812309,0.03,193.59,193.54,10.24505834]
[1739674813114,10.27505834,193.59,193.53,10.24505834]
[1739674813795,5.1658,193.58,193.52,10.24505834]
[1739674814808,5.1658,193.58,193.53,10.24505834]
[1739674815414,5.1955,193.59,193.54,10.24505834]
[1739674816636,0.03,193.59,193.54,10.24505834]
[1739674817508,0.03,193.59,193.53,10.24505834]
[1739674818328,82.13,193.59,193.53,10.24505834]
[1739674818532,5.1658,193.58,193.53,10.24505834]
[1739674819029,10.24505834,193.56,193.5,10.30805834]
[1739674820324,1.5621,193.57,193.51,10.24505834]
[1739674820534,6.7282,193.57,193.53,10.24505834]
[1739674821030,6.7282,193.57,193.52,10.24505834]
[1739674821507,16.97325834,193.57,193.51,10.24505834]
[1739674821710,10.24505834,193.56,193.5,10.30805834]
[1739674822404,5.1666,193.55,193.5,0.063]
[1739674824703,10.24505834,193.55,193.5,0.063]
[1739674825134,10.24505834,193.53,193.5,0.063]
[1739674825729,10.24505834,193.54,193.5,0.063]
[1739674826823,5.1671,193.53,193.5,0.063]
[1739674827325,15.41215834,193.53,193.5,0.063]
[1739674827627,11.80715834,193.51,193.5,0.063]
[1739674828920,16.97475834,193.51,193.5,0.063]
[1739674830139,6.7297,193.51,193.5,0.063]
[1739674830443,1.5621,193.51,193.5,0.063]
[1739674831820,1.5621,193.51,193.5,0.063]
[1739674833335,5.1669,193.54,193.5,0.063]
[1739674834438,93.91495834,193.56,193.5,0.063]
[1739674834616,5.1666,193.55,193.5,0.063]
[1739674835139,10.24505834,193.54,193.5,0.063]
[1739674835642,10.24505834,193.53,193.5,0.063]
[1739674836838,10.24505834,193.51,193.5,0.063]
[1739674839023,15.41265834,193.51,193.5,0.063]
[1739674841322,15.44265834,193.51,193.5,0.063]
[1739674842576,28.85450687,193.51,193.5,0.063]
[1739674842751,30.48630687,193.51,193.5,0.063]
[1739674843637,30.48630687,193.51,193.5,0.0001]
[1739674843840,71.46654023,193.51,193.5,0.0001]
[1739674844048,30.48630687,193.51,193.5,0.0001]
[1739674846037,17.07445834,193.51,193.5,0.0001]
[1739674851953,0.03,193.51,193.5,0.0001]
[1739674854271,10.27505834,193.51,193.5,0.0001]
[1739674854459,0.03,193.51,193.5,0.0001]
[1739674855841,10.27505834,193.51,193.5,0.0001]
[1739674856280,0.03,193.51,193.5,0.0001]
[1739674858455,15.44265834,193.51,193.5,0.0001]
[1739674859778,15.18426708,193.51,193.5,0.0001]
[1739674865166,5.1976,193.51,193.5,0.0001]
[1739674865368,0.03,193.51,193.5,0.0001]
[1739674868693,0.03,193.51,193.5,10.24515834]
[1739674869070,0.03,193.51,193.5,0.0001]
[1739674869691,0.03,193.51,193.5,10.24515834]
[1739674871692,0.03,193.51,193.5,23.16175834]
[1739674871865,0.03,193.51,193.5,64.1419917]
[1739674872289,0.03,193.51,193.5,215.05384023]
[1739674873591,0.0001,193.51,193.5,215.05384023]
[1739674874483,0.03,193.59,193.54,20.0]
[1739674874671,0.03,193.59,193.58,10.24505834]
[1739674879172,0.03,193.59,193.58,15.41085834]
[1739674880593,0.03,193.59,193.58,16.41085834]
[1739674881396,0.03,193.59,193.58,71.57749088]
[1739674881594,0.03,193.61,193.6,20.0]
[1739674881772,0.03,193.61,193.6,153.29972861]
[1739674881972,0.03,193.61,193.6,153.5252917]
[1739674882592,0.03,193.61,193.6,158.6904917]
[1739674884293,0.03,193.61,193.6,91.54505834]
[1739674885209,0.03,193.61,193.6,10.24505834]
[1739674887214,0.03,193.61,193.58,10.24505834]
[1739674887911,0.03,193.61,193.59,30.24505834]
[1739674888899,0.03,193.61,193.58,10.24505834]
[1739674889099,0.03,193.61,193.57,10.24505834]
[1739674889681,10.24505834,193.59,193.53,10.24505834]
[1739674889887,10.24505834,193.57,193.51,10.30805834]
[1739674890081,10.24505834,193.58,193.51,10.30805834]
[1739674891109,5.166,193.57,193.52,10.24505834]
[1739674891815,1.564,193.6,193.54,10.24505834]
[1739674892009,1.564,193.6,193.55,10.24505834]
[1739674892182,1.564,193.6,193.56,10.24505834]
[1739674892388,0.03,193.61,193.56,10.24505834]
[1739674894407,10.24505834,193.58,193.52,10.24505834]
[1739674894613,10.24505834,193.58,193.51,10.30805834]
[1739674895712,5.166,193.57,193.51,10.30805834]
[1739674897819,5.166,193.57,193.52,10.24505834]
[1739674899614,5.166,193.57,193.53,10.24505834]
[1739674899918,5.1657,193.59,193.56,10.24505834]
[1739674900303,82.1,193.6,193.56,10.24505834]
[1739674900817,92.34505834,193.6,193.54,10.24505834]
[1739674901124,87.2653,193.6,193.54,10.24505834]
[1739674906197,110.42355834,193.6,193.53,10.24505834]
[1739674906407,87.2653,193.6,193.51,0.063]
[1739674906611,87.2653,193.6,193.55,10.24505834]
[1739674907003,97.51035834,193.6,193.53,10.24505834]
[1739674907600,110.42355834,193.6,193.53,10.24505834]
[1739674907923,30.24505834,193.56,193.51,0.063]
[1739674908428,20.0,193.56,193.51,0.063]
[1739674908622,20.0,193.56,193.52,10.24505834]
[1739674908921,20.0,193.56,193.51,0.063]
[1739674908922,5.1658,193.58,193.53,10.24505834]
[1739674910142,5.1658,193.58,193.51,0.063]
[1739674910432,5.1658,193.58,193.55,10.24505834]
[1739674911830,5.1658,193.58,193.56,10.24505834]
[1739674912333,5.195,193.61,193.57,10.24505834]
[1739674912531,0.03,193.61,193.6,10.24505834]
[1739674913807,0.03,193.61,193.59,10.24505834]
[1739674914014,0.03,193.61,193.58,10.24505834]
[1739674914455,0.03,193.61,193.57,10.24505834]
[1739674916834,0.03,193.61,193.51,0.063]
[1739674916835,1.6521,193.61,193.51,0.063]
[1739674917056,5.166,193.57,193.51,10.30805834]
[1739674917346,5.1655,193.59,193.53,10.24505834]
[1739674917909,15.41055834,193.59,193.52,10.24505834]
[1739674918209,15.41055834,193.59,193.53,10.24505834]
[1739674918410,5.1655,193.59,193.54,10.24505834]
[1739674919556,5.1655,193.59,193.53,10.24505834]
[1739674921238,5.1655,193.59,193.55,10.24505834]
[1739674921442,83.7521,193.61,193.56,10.24505834]
[1739674921646,5.1653,193.6,193.56,10.24505834]
[1739674922141,83.7521,193.61,193.56,10.24505834]
[1739674922328,82.13,193.61,193.59,10.24505834]
[1739674922530,0.03,193.61,193.6,10.24505834]
[1739674923752,0.03,193.61,193.59,10.24505834]
[1739674924527,0.03,193.61,193.58,10.24505834]
[1739674924733,0.03,193.61,193.57,10.24505834]
[1739674925420,0.03,193.61,193.56,10.30805834]
[1739674925623,16.04411439,193.61,193.56,0.063]
[1739674925823,16.01411439,193.59,193.56,0.063]
[1739674926255,16.01411439,193.6,193.56,0.063]
[1739674927339,5.1655,193.59,193.56,0.063]
[1739674927542,16.01411439,193.58,193.56,0.063]
[1739674928053,21.17961439,193.59,193.56,0.063]
[1739674929952,5.1655,193.59,193.56,0.063]
[1739674932757,21.17961439,193.59,193.56,0.063]
[1739674933054,16.01411439,193.57,193.56,0.063]
[1739674933228,5.1655,193.59,193.56,0.063]
[1739674933439,87.2952,193.61,193.57,16.01411439]
[1739674933633,5.1952,193.61,193.57,16.01411439]
[1739674934259,0.03,193.61,193.58,16.01411439]
[1739674934837,0.03,193.61,193.57,16.01411439]
[1739674941173,0.03,193.61,193.58,16.01411439]
[1739674941354,0.03,193.61,193.6,16.01411439]
[1739674944368,0.03,193.61,193.59,16.01411439]
[1739674945682,0.03,193.61,193.59,10.24535648]
[1739674946164,0.03,193.61,193.57,10.24535648]
[1739674946367,0.03,193.61,193.6,10.24535648]
[1739674948354,0.03,193.61,193.6,15.41055648]
[1739674948664,0.03,193.61,193.6,57.1664973]
[1739674949577,0.03,193.61,193.6,5.9397149]
[1739674949786,0.03,193.61,193.6,37.93277532]
[1739674951976,0.03,193.61,193.6,187.84462385]
[1739674952186,0.03,193.61,193.6,187.07010895]
[1739674954290,0.03,193.61,193.6,188.07010895]
[1739674955081,0.0001,193.63,193.62,20.57654853]
[1739674955287,0.03,193.64,193.63,2.0]
[1739674955470,0.03,193.64,193.63,17.99653021]
[1739674955862,0.03,193.66,193.63,17.99653021]
[1739674955863,0.03,193.66,193.65,22.0]
[1739674956074,0.03,193.66,193.65,52.18257699]
[1739674957180,0.03,193.66,193.65,57.34647699]
[1739674961071,0.03,193.66,193.65,274.14647699]
[1739674961271,0.03,193.66,193.65,273.37227874]
[1739674962982,0.0001,193.66,193.65,273.37227874]
[1739674963185,0.03,193.73,193.65,273.37227874]
[1739674963186,0.03,193.73,193.66,2.0]
[1739674963483,0.03,193.73,193.66,240.73425374]
[1739674963691,0.03,193.73,193.67,2.0]
[1739674963878,0.03,193.73,193.7,20.0]
[1739674964201,0.03,193.73,193.7,263.20490895]
[1739674965908,0.03,193.73,193.7,268.36750895]
[1739674970884,0.03,193.73,193.7,251.37097874]
[1739674971200,0.03,193.73,193.7,252.37097874]
[1739674971612,0.03,193.73,193.7,245.60412265]
[1739674972103,0.03,193.73,193.7,246.60412265]
[1739674972273,0.03,193.73,193.7,245.60412265]
[1739674973499,0.03,193.73,193.7,246.60412265]
[1739674973677,0.03,193.73,193.7,245.60412265]
[1739674974897,0.03,193.73,193.7,227.02967412]
[1739674975877,0.03,193.73,193.7,91.52967412]
[1739674976106,0.03,193.73,193.7,96.69227412]
[1739674977731,0.03,193.78,193.75,0.08]
[1739674983687,0.03,193.78,193.75,10.30967412]
[1739674983894,0.03,193.78,193.76,10.22967412]
[1739674984410,0.03,193.78,193.75,10.30967412]
[1739674984582,0.03,193.78,193.77,10.22967412]
[1739674985890,0.03,193.78,193.77,15.39037412]
[1739674986398,0.03,193.78,193.77,29.80222265]
[1739674986602,0.0001,193.78,193.77,36.41592265]
[1739674986900,0.0001,193.8,193.79,15.41184853]
[1739674987099,0.0001,193.8,193.79,283.36021913]
[1739674988310,0.0001,193.8,193.79,288.52041913]
[1739674989215,0.0001,193.8,193.79,246.60172265]
[1739674989516,0.0001,193.8,193.79,245.60172265]
[1739674989689,0.0001,193.8,193.79,246.60172265]
[1739674990310,0.0001,193.8,193.79,245.60172265]
[1739674991215,0.0001,193.8,193.79,246.60172265]
[1739674994810,0.0001,193.8,193.79,288.52041913]
[1739674994991,0.0001,193.8,193.79,287.52041913]
[1739674995618,6.7359,193.9,193.81,5.1596]
[1739674995914,6.7359,193.9,193.86,10.22967412]
[1739674997522,1.5786,193.9,193.87,10.22967412]
[1739674997742,0.03,193.91,193.89,10.22967412]
[1739674999504,0.03,193.91,193.9,10.22967412]
[1739675002496,0.03,193.91,193.9,15.38687412]
[1739675004624,0.03,193.91,193.9,56.3055706]
[1739675005729,0.03,193.91,193.9,137.6055706]
[1739675007539,0.03,193.91,193.9,151.01741913]
[1739675009235,0.03,193.91,193.9,96.68687412]
[1739675009732,0.03,193.91,193.89,10.22967412]
[1739675010246,0.03,193.91,193.9,10.22967412]
[1739675010443,0.03,193.91,193.89,10.22967412]
[1739675011231,0.03,193.91,193.88,10.22967412]
[1739675011428,0.03,193.91,193.86,10.29267412]
[1739675012131,0.03,193.91,193.87,10.22967412]
[1739675012844,0.03,193.91,193.86,10.29267412]
[1739675013845,0.03,193.91,193.87,10.22967412]
[1739675014146,0.03,193.91,193.86,10.29267412]
[1739675014936,0.03,193.91,193.86,0.063]
[1739675015142,10.22967412,193.89,193.86,0.063]
[1739675015342,10.22967412,193.9,193.86,0.063]
[1739675015526,5.1575,193.89,193.86,0.063]
[1739675016230,15.38717412,193.89,193.86,0.063]
[1739675016547,10.22967412,193.87,193.86,0.063]
[1739675017137,10.22967412,193.88,193.86,0.063]
[1739675017769,17.04957412,193.87,193.86,0.063]
[1739675020253,17.04957412,193.87,193.77,91.98967412]
[1739675020440,17.04957412,193.87,193.77,81.76]
[1739675020754,10.22967412,193.83,193.77,81.76]
[1739675021151,10.22967412,193.82,193.77,81.76]
[1739675022060,15.38857412,193.84,193.77,97.15027412]
[1739675022248,15.38857412,193.84,193.78,10.22967412]
[1739675022636,15.38857412,193.84,193.77,97.15027412]
[1739675024035,15.38857412,193.84,193.77,91.98967412]
[1739675024755,15.38857412,193.84,193.78,10.22967412]
[1739675024959,15.38857412,193.84,193.77,91.98967412]
[1739675025263,10.22967412,193.79,193.75,0.063]
[1739675025463,15.39007412,193.79,193.75,0.063]
[1739675026733,1.6619,193.8,193.75,10.29267412]
[1739675026958,6.8218,193.8,193.76,10.22967412]
[1739675027456,10.22967412,193.83,193.77,10.22967412]
[1739675027661,10.22967412,193.84,193.78,10.22967412]
[1739675029239,15.38857412,193.84,193.78,10.22967412]
[1739675030171,10.22967412,193.83,193.77,15.39017412]
[1739675030664,15.38887412,193.83,193.77,10.22967412]
[1739675031162,15.38887412,193.83,193.76,10.22967412]
[1739675032348,15.38887412,193.83,193.76,15.39057412]
[1739675033451,5.1592,193.83,193.79,10.22967412]
[1739675033751,5.1592,193.83,193.77,10.22967412]
[1739675035243,5.1588,193.84,193.78,10.22967412]
[1739675036464,1.6619,193.85,193.81,10.22967412]
[1739675036765,88.773,193.9,193.84,10.22967412]
[1739675036948,16.90267412,193.9,193.84,10.22967412]
[1739675037562,16.90267412,193.9,193.83,10.22967412]
[1739675038260,16.90267412,193.9,193.83,15.38877412]
[1739675038462,6.673,193.9,193.84,10.22967412]
[1739675038658,6.673,193.9,193.85,10.22967412]
[1739675039463,6.673,193.9,193.84,10.22967412]
[1739675040289,1.5157,193.9,193.84,10.22967412]
[1739675040461,1.5157,193.9,193.86,10.22967412]
[1739675040768,10.22967412,193.88,193.82,10.22967412]
[1739675040946,10.22967412,193.89,193.82,10.22967412]
[1739675041346,10.22967412,193.89,193.83,10.22967412]
[1739675041545,15.38727412,193.89,193.82,10.22967412]
[1739675041751,10.22967412,193.89,193.83,10.22967412]
[1739675041955,16.93267412,193.9,193.83,10.22967412]
[1739675042660,10.22967412,193.89,193.83,10.22967412]
[1739675043175,11.77537412,193.9,193.83,10.22967412]
[1739675043380,1.5457,193.9,193.85,10.22967412]
[1739675043880,1.5457,193.9,193.84,10.22967412]
[1739675044875,6.703,193.9,193.84,10.22967412]
[1739675045978,6.703,193.9,193.83,5.159]
[1739675045979,10.22967412,193.89,193.83,10.22967412]
[1739675046565,10.22967412,193.89,193.82,15.38907412]
[1739675048183,10.22967412,193.89,193.78,10.22967412]
[1739675048184,10.22967412,193.85,193.78,10.22967412]
[1739675048377,10.22967412,193.82,193.76,15.39067412]
[1739675048966,10.22967412,193.78,193.75,0.063]
[1739675049272,21.554,193.83,193.75,0.063]
[1739675049577,10.22967412,193.76,193.75,0.063]
[1739675050300,15.39067412,193.76,193.75,0.063]
[1739675051761,10.22967412,193.76,193.75,0.063]
[1739675054677,10.22967412,193.77,193.75,0.063]
[1739675056599,10.22967412,193.76,193.75,0.063]
[1739675058111,15.39067412,193.76,193.75,0.063]
[1739675061906,16.94777412,193.76,193.75,0.063]
[1739675062604,17.94777412,193.76,193.75,0.0001]
[1739675064805,20.0,193.72,193.68,0.063]
[1739675065010,10.22967412,193.69,193.68,0.063]
[1739675066304,92.32967412,193.72,193.68,0.063]
[1739675066502,87.2621,193.72,193.68,0.063]
[1739675067190,97.49177412,193.72,193.68,0.063]
[1739675069784,10.22967412,193.71,193.68,0.063]
[1739675070407,10.22967412,193.7,193.68,0.063]
[1739675070614,10.22967412,193.69,193.68,0.063]
[1739675071323,10.22967412,193.7,193.68,0.063]
[1739675071533,5.1627,193.7,193.68,0.063]
[1739675072221,15.39197412,193.71,193.68,0.063]
[1739675072391,5.1623,193.71,193.68,0.063]
[1739675074303,15.39197412,193.71,193.68,0.063]
[1739675076004,10.22967412,193.69,193.68,0.063]
[1739675078425,15.39247412,193.69,193.68,0.063]
[1739675079126,5.1628,193.69,193.68,0.063]
[1739675080341,5.1626,193.7,193.68,0.063]
[1739675080545,82.1,193.72,193.68,10.29267412]